[Event "*** SCC Grand Prix: Titled Tuesday Blitz"]
[Site "Chess.com"]
[Date "2020.10.13"]
[Round "10"]
[White "Sacbutt"]
[Black "AurumO"]
[Result "1-0"]
[WhiteElo "2296"]
[BlackElo "1948"]
[TimeControl "180+1"]
[EndTime "11:52:50 PDT"]
[Termination "Sacbutt won by resignation"]

1. d4 {[%clk 0:03:00.9]} 1... d5 {[%clk 0:02:58.3]} 2. Nf3 {[%clk 0:03:00.2]}
2... Nf6 {[%clk 0:02:58.6]} 3. Bf4 {[%clk 0:02:59.8]} 3... c5 {[%clk 0:02:58.4]}
4. c3 {[%clk 0:02:58.9]} 4... Nc6 {[%clk 0:02:57.9]} 5. e3 {[%clk 0:02:59.2]}
5... Qb6 {[%clk 0:02:58.1]} 6. Qb3 {[%clk 0:02:56.5]} 6... c4 {[%clk 0:02:58.5]}
7. Qc2 {[%clk 0:02:51.1]} 7... Bf5 {[%clk 0:02:58.4]} 8. Qc1 {[%clk 0:02:48.7]}
8... e6 {[%clk 0:02:58.8]} 9. Nbd2 {[%clk 0:02:42.7]} 9... h6 {[%clk 0:02:58.9]}
10. Be2 {[%clk 0:02:41.1]} 10... Be7 {[%clk 0:02:57.2]} 11. O-O {[%clk
0:02:40.1]} 11... O-O {[%clk 0:02:57.8]} 12. b3 {[%clk 0:02:40.3]} 12... cxb3
{[%clk 0:02:56.6]} 13. axb3 {[%clk 0:02:40.3]} 13... Qd8 {[%clk 0:02:57.3]} 14.
c4 {[%clk 0:02:38.5]} 14... Bd6 {[%clk 0:02:54.2]} 15. Ne5 {[%clk 0:02:28.1]}
15... Bxe5 {[%clk 0:02:51.5]} 16. dxe5 {[%clk 0:02:27]} 16... Ne4 {[%clk
0:02:52.1]} 17. Nxe4 {[%clk 0:02:16.5]} 17... Bxe4 {[%clk 0:02:53]} 18. Rd1
{[%clk 0:02:10.7]} 18... f6 {[%clk 0:02:39.2]} 19. cxd5 {[%clk 0:02:04.5]} 19...
exd5 {[%clk 0:02:36.9]} 20. exf6 {[%clk 0:02:02.8]} 20... Qxf6 {[%clk
0:02:35.1]} 21. f3 {[%clk 0:01:53.3]} 21... Bg6 {[%clk 0:02:31.7]} 22. Rxd5
{[%clk 0:01:51.5]} 22... Bf7 {[%clk 0:02:30.9]} 23. Rd6 {[%clk 0:01:44.3]} 23...
Qe7 {[%clk 0:02:25.9]} 24. Bc4 {[%clk 0:01:26]} 24... Rfd8 {[%clk 0:02:21.3]}
25. Qd2 {[%clk 0:01:19.7]} 25... Bxc4 {[%clk 0:02:16.6]} 26. bxc4 {[%clk
0:01:18.3]} 26... Rxd6 {[%clk 0:02:14.5]} 27. Qxd6 {[%clk 0:01:18.4]} 27... Qxd6
{[%clk 0:02:10.8]} 28. Bxd6 {[%clk 0:01:19.3]} 28... Rd8 {[%clk 0:02:10.7]} 29.
c5 {[%clk 0:01:18.5]} 29... b6 {[%clk 0:02:09.4]} 30. e4 {[%clk 0:01:13.5]}
30... bxc5 {[%clk 0:02:05.2]} 31. Bxc5 {[%clk 0:01:14.4]} 31... Rd2 {[%clk
0:02:03.9]} 32. Bxa7 {[%clk 0:01:12.5]} 32... Ne5 {[%clk 0:02:03.6]} 33. Be3
{[%clk 0:01:11.1]} 33... Rc2 {[%clk 0:01:56.4]} 34. Rd1 {[%clk 0:00:57.4]} 34...
h5 {[%clk 0:01:45.1]} 35. Rd2 {[%clk 0:00:51.4]} 35... Rc1+ {[%clk 0:01:37.9]}
36. Kf2 {[%clk 0:00:51.4]} 36... h4 {[%clk 0:01:35.3]} 37. Rd8+ {[%clk
0:00:50.8]} 37... Kh7 {[%clk 0:01:31.4]} 38. Bxc1 {[%clk 0:00:51.7]} 1-0

[Event "*** SCC Grand Prix: Titled Tuesday Blitz"]
[Site "Chess.com"]
[Date "2020.10.13"]
[Round "10"]
[White "vugarrasulov"]
[Black "PSvidler"]
[Result "1-0"]
[WhiteElo "2859"]
[BlackElo "2895"]
[TimeControl "180+1"]
[EndTime "11:52:53 PDT"]
[Termination "vugarrasulov won by resignation"]

1. d4 {[%clk 0:03:00.9]} 1... d6 {[%clk 0:02:57.8]} 2. Nf3 {[%clk 0:03:00.8]}
2... Bg4 {[%clk 0:02:54.8]} 3. c4 {[%clk 0:02:58.8]} 3... Bxf3 {[%clk
0:02:54.5]} 4. gxf3 {[%clk 0:02:59]} 4... c6 {[%clk 0:02:52.2]} 5. e3 {[%clk
0:02:57.8]} 5... Nd7 {[%clk 0:02:51.9]} 6. f4 {[%clk 0:02:57.8]} 6... g6 {[%clk
0:02:51.8]} 7. Bg2 {[%clk 0:02:57.2]} 7... Bg7 {[%clk 0:02:50.9]} 8. O-O {[%clk
0:02:57.7]} 8... e6 {[%clk 0:02:49.5]} 9. Nc3 {[%clk 0:02:58]} 9... Ne7 {[%clk
0:02:49.4]} 10. b3 {[%clk 0:02:56.4]} 10... d5 {[%clk 0:02:45.3]} 11. Ba3 {[%clk
0:02:54.3]} 11... O-O {[%clk 0:02:44.7]} 12. cxd5 {[%clk 0:02:46.3]} 12... exd5
{[%clk 0:02:43.9]} 13. f5 {[%clk 0:02:38.5]} 13... Re8 {[%clk 0:02:40.5]} 14.
fxg6 {[%clk 0:02:38.3]} 14... hxg6 {[%clk 0:02:40.5]} 15. Bh3 {[%clk 0:02:33]}
15... Nf6 {[%clk 0:02:33.2]} 16. Kh1 {[%clk 0:02:29.2]} 16... Nc8 {[%clk
0:02:28.8]} 17. Qf3 {[%clk 0:02:20.1]} 17... Nd6 {[%clk 0:02:28.6]} 18. Bxd6
{[%clk 0:02:15.9]} 18... Qxd6 {[%clk 0:02:28.4]} 19. Rg1 {[%clk 0:02:16.8]}
19... a5 {[%clk 0:01:59.3]} 20. Rg2 {[%clk 0:02:07.9]} 20... b5 {[%clk
0:01:58.2]} 21. Rag1 {[%clk 0:02:06.8]} 21... a4 {[%clk 0:01:49.2]} 22. Ne2
{[%clk 0:01:59.5]} 22... Ne4 {[%clk 0:01:49.1]} 23. Nf4 {[%clk 0:01:52.3]} 23...
Qf6 {[%clk 0:01:47.7]} 24. b4 {[%clk 0:01:24.2]} 24... Kf8 {[%clk 0:01:39.8]}
25. Bd7 {[%clk 0:01:13.1]} 25... Ke7 {[%clk 0:01:35.6]} 26. Bxe8 {[%clk
0:01:11.6]} 26... Rxe8 {[%clk 0:01:35.4]} 27. Qd1 {[%clk 0:01:00.3]} 27... Rh8
{[%clk 0:01:30.5]} 28. f3 {[%clk 0:00:59.5]} 28... Nd6 {[%clk 0:01:29.3]} 29.
Nxg6+ {[%clk 0:00:54]} 29... fxg6 {[%clk 0:01:20.5]} 30. Rxg6 {[%clk 0:00:54.9]}
30... Qh4 {[%clk 0:01:21.2]} 31. Rxg7+ {[%clk 0:00:54.9]} 31... Nf7 {[%clk
0:01:21.4]} 32. Qc2 {[%clk 0:00:50]} 1-0

[Event "*** SCC Grand Prix: Titled Tuesday Blitz"]
[Site "Chess.com"]
[Date "2020.10.13"]
[Round "10"]
[White "Sueetin"]
[Black "Vamostodorecto"]
[Result "1-0"]
[WhiteElo "2280"]
[BlackElo "2341"]
[TimeControl "180+1"]
[EndTime "11:53:04 PDT"]
[Termination "Sueetin won by resignation"]

1. d4 {[%clk 0:03:00.9]} 1... Nf6 {[%clk 0:02:45.9]} 2. c4 {[%clk 0:03:00.5]}
2... g6 {[%clk 0:02:45.1]} 3. Nc3 {[%clk 0:03:00.2]} 3... d5 {[%clk 0:02:45.6]}
4. Nf3 {[%clk 0:02:59.5]} 4... Bg7 {[%clk 0:02:45.4]} 5. cxd5 {[%clk 0:02:59.7]}
5... Nxd5 {[%clk 0:02:46.3]} 6. e3 {[%clk 0:03:00.3]} 6... O-O {[%clk
0:02:45.2]} 7. Bc4 {[%clk 0:03:00.1]} 7... Nb6 {[%clk 0:02:44.9]} 8. Bb3 {[%clk
0:02:59.8]} 8... Nc6 {[%clk 0:02:45.2]} 9. O-O {[%clk 0:02:59.4]} 9... e5 {[%clk
0:02:45.9]} 10. d5 {[%clk 0:02:59.2]} 10... Na5 {[%clk 0:02:44.2]} 11. e4 {[%clk
0:02:59.7]} 11... Nxb3 {[%clk 0:02:41.8]} 12. axb3 {[%clk 0:03:00.6]} 12... c6
{[%clk 0:02:35.4]} 13. Be3 {[%clk 0:02:53.8]} 13... f5 {[%clk 0:02:30.3]} 14.
dxc6 {[%clk 0:02:41.7]} 14... Qc7 {[%clk 0:02:04.3]} 15. Bxb6 {[%clk 0:02:21.1]}
15... Qxb6 {[%clk 0:02:05.2]} 16. Nd5 {[%clk 0:02:21]} 16... Qd8 {[%clk
0:01:59.8]} 17. c7 {[%clk 0:02:04.1]} 17... Qe8 {[%clk 0:01:57.3]} 18. Qc2
{[%clk 0:01:48.9]} 18... fxe4 {[%clk 0:01:53.4]} 19. Ng5 {[%clk 0:01:44]} 19...
Bf5 {[%clk 0:01:54.3]} 20. Nxe4 {[%clk 0:01:37]} 20... Kh8 {[%clk 0:01:41]} 21.
f3 {[%clk 0:01:36.6]} 21... Qf7 {[%clk 0:01:27.5]} 22. Rfd1 {[%clk 0:01:33.2]}
22... Rfc8 {[%clk 0:01:23.1]} 23. b4 {[%clk 0:01:08]} 23... Bf8 {[%clk
0:01:17.2]} 24. Qc4 {[%clk 0:00:55.4]} 24... Be6 {[%clk 0:01:11.5]} 25. Nec3
{[%clk 0:00:52.1]} 25... Bxb4 {[%clk 0:00:58]} 26. Qxb4 {[%clk 0:00:48.8]} 1-0

[Event "*** SCC Grand Prix: Titled Tuesday Blitz"]
[Site "Chess.com"]
[Date "2020.10.13"]
[Round "10"]
[White "romulocardoso"]
[Black "CM_rui"]
[Result "1-0"]
[WhiteElo "2116"]
[BlackElo "2319"]
[TimeControl "180+1"]
[EndTime "11:53:07 PDT"]
[Termination "romulocardoso won by checkmate"]

1. e4 {[%clk 0:02:59]} 1... e5 {[%clk 0:03:00.1]} 2. Nf3 {[%clk 0:02:58.1]} 2...
Nc6 {[%clk 0:03:00.7]} 3. d4 {[%clk 0:02:57.7]} 3... exd4 {[%clk 0:03:00]} 4.
Bc4 {[%clk 0:02:57.8]} 4... Nf6 {[%clk 0:02:59]} 5. e5 {[%clk 0:02:57.9]} 5...
d5 {[%clk 0:02:58.9]} 6. Bb5 {[%clk 0:02:54.4]} 6... Ne4 {[%clk 0:02:59.3]} 7.
Nxd4 {[%clk 0:02:53.8]} 7... Bd7 {[%clk 0:03:00]} 8. Bxc6 {[%clk 0:02:50.9]}
8... bxc6 {[%clk 0:03:00.9]} 9. O-O {[%clk 0:02:51.8]} 9... Bc5 {[%clk
0:03:01.4]} 10. f3 {[%clk 0:02:50.9]} 10... Ng5 {[%clk 0:02:58.1]} 11. Be3
{[%clk 0:02:50.5]} 11... O-O {[%clk 0:02:56.6]} 12. f4 {[%clk 0:02:50.4]} 12...
Ne6 {[%clk 0:02:56.6]} 13. f5 {[%clk 0:02:48.9]} 13... Nxd4 {[%clk 0:02:30.6]}
14. Bxd4 {[%clk 0:02:49.8]} 14... Bxd4+ {[%clk 0:02:24.6]} 15. Qxd4 {[%clk
0:02:50.7]} 15... Qg5 {[%clk 0:02:21.6]} 16. h4 {[%clk 0:02:45.6]} 16... Qg3
{[%clk 0:02:10.1]} 17. Nc3 {[%clk 0:02:43.9]} 17... Rfe8 {[%clk 0:01:58]} 18.
Rae1 {[%clk 0:02:40.2]} 18... Rab8 {[%clk 0:01:20.2]} 19. Re3 {[%clk 0:02:38.9]}
19... c5 {[%clk 0:01:20.2]} 20. Rxg3 {[%clk 0:02:32.5]} 20... cxd4 {[%clk
0:01:20.2]} 21. Nxd5 {[%clk 0:02:32.7]} 21... Kf8 {[%clk 0:01:12.2]} 22. f6
{[%clk 0:02:30.4]} 22... g6 {[%clk 0:01:07.6]} 23. Re1 {[%clk 0:01:59.3]} 23...
Rxb2 {[%clk 0:01:03.3]} 24. Nxc7 {[%clk 0:01:59.3]} 24... Rc8 {[%clk 0:01:01.9]}
25. e6 {[%clk 0:01:52.7]} 25... fxe6 {[%clk 0:00:30.9]} 26. Nxe6+ {[%clk
0:01:51.1]} 26... Bxe6 {[%clk 0:00:31]} 27. Rxe6 {[%clk 0:01:52]} 27... Rcxc2
{[%clk 0:00:31.4]} 28. Re7 {[%clk 0:01:49.7]} 28... Rxa2 {[%clk 0:00:29.1]} 29.
Rxh7 {[%clk 0:01:48.9]} 29... a5 {[%clk 0:00:16.2]} 30. Rxg6 {[%clk 0:01:48.9]}
30... d3 {[%clk 0:00:12.6]} 31. Rgg7 {[%clk 0:01:48.7]} 31... Re2 {[%clk
0:00:06.5]} 32. Rh8# {[%clk 0:01:47.7]} 1-0

[Event "*** SCC Grand Prix: Titled Tuesday Blitz"]
[Site "Chess.com"]
[Date "2020.10.13"]
[Round "10"]
[White "Maksimus1998"]
[Black "Cocaino74"]
[Result "1-0"]
[WhiteElo "2602"]
[BlackElo "2393"]
[TimeControl "180+1"]
[EndTime "11:53:14 PDT"]
[Termination "Maksimus1998 won by resignation"]

1. e4 {[%clk 0:03:00.9]} 1... c5 {[%clk 0:03:00]} 2. Nf3 {[%clk 0:03:00.6]} 2...
Nc6 {[%clk 0:03:00.5]} 3. c3 {[%clk 0:02:58]} 3... Nf6 {[%clk 0:03:00.2]} 4. e5
{[%clk 0:02:58.5]} 4... Nd5 {[%clk 0:03:00.9]} 5. d4 {[%clk 0:02:59.1]} 5...
cxd4 {[%clk 0:03:01.8]} 6. cxd4 {[%clk 0:02:59.7]} 6... d6 {[%clk 0:03:02.7]} 7.
Bc4 {[%clk 0:02:59.3]} 7... Nb6 {[%clk 0:03:03]} 8. Bb3 {[%clk 0:02:59]} 8...
dxe5 {[%clk 0:03:03.5]} 9. d5 {[%clk 0:02:50.2]} 9... Na5 {[%clk 0:03:03.8]} 10.
Nc3 {[%clk 0:02:48.1]} 10... g6 {[%clk 0:03:02.5]} 11. Nxe5 {[%clk 0:02:45.9]}
11... Bg7 {[%clk 0:03:02.1]} 12. Bf4 {[%clk 0:02:45.5]} 12... Nxb3 {[%clk
0:02:34.6]} 13. Qxb3 {[%clk 0:02:43.5]} 13... O-O {[%clk 0:02:29.7]} 14. O-O
{[%clk 0:02:42.6]} 14... e6 {[%clk 0:02:16.7]} 15. Rfd1 {[%clk 0:02:33.9]} 15...
exd5 {[%clk 0:02:16.6]} 16. Nxd5 {[%clk 0:02:33.6]} 16... Nxd5 {[%clk
0:02:06.5]} 17. Rxd5 {[%clk 0:02:29.4]} 17... Qe7 {[%clk 0:01:52.2]} 18. Qd3
{[%clk 0:02:25]} 18... Bf5 {[%clk 0:01:45]} 19. Qd2 {[%clk 0:02:24.8]} 19...
Rfd8 {[%clk 0:01:26.1]} 20. Rd1 {[%clk 0:02:22.7]} 20... Rxd5 {[%clk 0:01:11.4]}
21. Qxd5 {[%clk 0:02:23.6]} 21... Be6 {[%clk 0:01:04.5]} 22. Qa5 {[%clk
0:02:16]} 22... b6 {[%clk 0:00:56.6]} 23. Qa4 {[%clk 0:02:13.2]} 23... Bxe5
{[%clk 0:00:47.6]} 24. Bxe5 {[%clk 0:02:11.3]} 24... Bxa2 {[%clk 0:00:48]} 25.
Bc3 {[%clk 0:02:08]} 25... Be6 {[%clk 0:00:11.8]} 26. Qd4 {[%clk 0:02:04.7]}
26... f6 {[%clk 0:00:11.8]} 27. h4 {[%clk 0:01:58]} 27... Rf8 {[%clk 0:00:10.9]}
28. h5 {[%clk 0:01:57.5]} 28... gxh5 {[%clk 0:00:07.6]} 29. Rd3 {[%clk
0:01:57.3]} 29... Kf7 {[%clk 0:00:06.7]} 30. Qe4 {[%clk 0:01:55.4]} 30... Rh8
{[%clk 0:00:03.9]} 31. Rf3 {[%clk 0:01:53.9]} 31... f5 {[%clk 0:00:02.3]} 32.
Rxf5+ {[%clk 0:01:52.8]} 32... Bxf5 {[%clk 0:00:02.4]} 33. Qxf5+ {[%clk
0:01:53]} 33... Ke8 {[%clk 0:00:02.5]} 34. Bxh8 {[%clk 0:01:50.4]} 1-0

[Event "*** SCC Grand Prix: Titled Tuesday Blitz"]
[Site "Chess.com"]
[Date "2020.10.13"]
[Round "10"]
[White "Barmen_EV"]
[Black "bakki78"]
[Result "0-1"]
[WhiteElo "2495"]
[BlackElo "2732"]
[TimeControl "180+1"]
[EndTime "11:53:26 PDT"]
[Termination "bakki78 won by checkmate"]

1. d4 {[%clk 0:02:50.5]} 1... Nf6 {[%clk 0:02:58.5]} 2. c4 {[%clk 0:02:50.7]}
2... g6 {[%clk 0:02:58.4]} 3. Nc3 {[%clk 0:02:50.8]} 3... Bg7 {[%clk 0:02:58.6]}
4. e4 {[%clk 0:02:51.1]} 4... d6 {[%clk 0:02:59.1]} 5. f4 {[%clk 0:02:51.6]}
5... O-O {[%clk 0:02:57.7]} 6. Nf3 {[%clk 0:02:52.1]} 6... Na6 {[%clk
0:02:58.1]} 7. Bd3 {[%clk 0:02:51.5]} 7... e5 {[%clk 0:02:55.4]} 8. fxe5 {[%clk
0:02:52.4]} 8... dxe5 {[%clk 0:02:54.4]} 9. d5 {[%clk 0:02:52.8]} 9... Bg4
{[%clk 0:02:49.8]} 10. O-O {[%clk 0:02:52.3]} 10... Nc5 {[%clk 0:02:49.7]} 11.
Bc2 {[%clk 0:02:52]} 11... a5 {[%clk 0:02:49.1]} 12. Be3 {[%clk 0:02:51.8]}
12... Nfd7 {[%clk 0:02:48.2]} 13. h3 {[%clk 0:02:45]} 13... Bxf3 {[%clk
0:02:47.8]} 14. Qxf3 {[%clk 0:02:45.9]} 14... Ra6 {[%clk 0:02:46.2]} 15. a3
{[%clk 0:02:43.3]} 15... Rb6 {[%clk 0:02:44.1]} 16. Rab1 {[%clk 0:02:37.7]}
16... Rf6 {[%clk 0:02:42.9]} 17. Qe2 {[%clk 0:02:32.6]} 17... Rxf1+ {[%clk
0:02:41.1]} 18. Rxf1 {[%clk 0:02:33.5]} 18... Qe7 {[%clk 0:02:37.7]} 19. Rb1
{[%clk 0:01:52.4]} 19... Na6 {[%clk 0:02:35.5]} 20. Ba4 {[%clk 0:01:40.3]} 20...
Ndc5 {[%clk 0:02:33.1]} 21. Bb5 {[%clk 0:01:32.8]} 21... Nb3 {[%clk 0:02:33]}
22. Bxa6 {[%clk 0:01:19.7]} 22... bxa6 {[%clk 0:02:32.7]} 23. c5 {[%clk
0:01:14.1]} 23... Nxc5 {[%clk 0:02:32.5]} 24. Qc4 {[%clk 0:01:13]} 24... Nb7
{[%clk 0:02:32.7]} 25. Qxa6 {[%clk 0:01:10.8]} 25... Nd6 {[%clk 0:02:33.3]} 26.
Qxa5 {[%clk 0:01:06.8]} 26... f5 {[%clk 0:02:32.3]} 27. Bc5 {[%clk 0:01:01.7]}
27... fxe4 {[%clk 0:02:26.6]} 28. Nxe4 {[%clk 0:00:56.2]} 28... Bh6 {[%clk
0:02:20.5]} 29. Qb4 {[%clk 0:00:45.8]} 29... Qf7 {[%clk 0:02:14.7]} 30. Bxd6
{[%clk 0:00:29.9]} 30... cxd6 {[%clk 0:02:13.4]} 31. Qxd6 {[%clk 0:00:29.5]}
31... Be3+ {[%clk 0:02:11.7]} 32. Kh1 {[%clk 0:00:29.2]} 32... Qf4 {[%clk
0:02:02.7]} 33. Qe6+ {[%clk 0:00:26.2]} 33... Kg7 {[%clk 0:02:02.2]} 34. Nd6
{[%clk 0:00:19.4]} 34... h5 {[%clk 0:01:53]} 35. Ne8+ {[%clk 0:00:16.9]} 35...
Kh6 {[%clk 0:01:52.2]} 36. d6 {[%clk 0:00:17]} 36... h4 {[%clk 0:01:46.6]} 37.
d7 {[%clk 0:00:16.2]} 37... Qf1+ {[%clk 0:01:46.2]} 38. Rxf1 {[%clk 0:00:14.9]}
38... Rxf1+ {[%clk 0:01:46.6]} 39. Kh2 {[%clk 0:00:15.8]} 39... Bg1+ {[%clk
0:01:47.1]} 40. Kh1 {[%clk 0:00:15.9]} 40... Bf2+ {[%clk 0:01:47.7]} 41. Kh2
{[%clk 0:00:16.2]} 41... Bg3# {[%clk 0:01:48.3]} 0-1

[Event "*** SCC Grand Prix: Titled Tuesday Blitz"]
[Site "Chess.com"]
[Date "2020.10.13"]
[Round "10"]
[White "GigaQuparadze"]
[Black "chito89"]
[Result "1-0"]
[WhiteElo "2956"]
[BlackElo "2797"]
[TimeControl "180+1"]
[EndTime "11:53:27 PDT"]
[Termination "GigaQuparadze won by resignation"]

1. e4 {[%clk 0:03:00.9]} 1... c5 {[%clk 0:02:56.8]} 2. Nf3 {[%clk 0:03:00.4]}
2... e6 {[%clk 0:02:57.1]} 3. d4 {[%clk 0:02:59.9]} 3... cxd4 {[%clk 0:02:58]}
4. Nxd4 {[%clk 0:03:00.5]} 4... Nc6 {[%clk 0:02:58.5]} 5. Nc3 {[%clk 0:03:00.5]}
5... Nf6 {[%clk 0:02:58.4]} 6. Nxc6 {[%clk 0:02:59.5]} 6... bxc6 {[%clk
0:02:59.2]} 7. e5 {[%clk 0:02:59.8]} 7... Nd5 {[%clk 0:02:59.8]} 8. Ne4 {[%clk
0:03:00.1]} 8... Qc7 {[%clk 0:03:00.3]} 9. f4 {[%clk 0:02:59.3]} 9... Qb6 {[%clk
0:02:59.5]} 10. c4 {[%clk 0:02:59.4]} 10... Bb4+ {[%clk 0:02:55.9]} 11. Ke2
{[%clk 0:02:58]} 11... f5 {[%clk 0:02:53.2]} 12. Nf2 {[%clk 0:02:46.8]} 12...
Bc5 {[%clk 0:02:20.8]} 13. Nd3 {[%clk 0:02:21.6]} 13... Ne3 {[%clk 0:02:12.7]}
14. Qa4 {[%clk 0:02:16.9]} 14... Nxf1 {[%clk 0:02:07.9]} 15. Rxf1 {[%clk
0:02:12.1]} 15... Bd4 {[%clk 0:02:08.1]} 16. Rb1 {[%clk 0:01:53.5]} 16... c5
{[%clk 0:02:04.5]} 17. Be3 {[%clk 0:01:53.2]} 17... Bxe3 {[%clk 0:02:00.7]} 18.
Kxe3 {[%clk 0:01:54.1]} 18... Bb7 {[%clk 0:02:00.4]} 19. Qb5 {[%clk 0:01:52.6]}
19... Rc8 {[%clk 0:01:58.4]} 20. b4 {[%clk 0:01:45.3]} 20... cxb4+ {[%clk
0:01:32.5]} 21. Qxb6 {[%clk 0:01:43.8]} 21... axb6 {[%clk 0:01:33.4]} 22. Rxb4
{[%clk 0:01:44.1]} 22... O-O {[%clk 0:01:05.7]} 23. g3 {[%clk 0:01:39.2]} 23...
Ra8 {[%clk 0:01:01]} 24. a4 {[%clk 0:01:37.4]} 24... Bc6 {[%clk 0:00:55.2]} 25.
Rfb1 {[%clk 0:01:31.4]} 25... Ra6 {[%clk 0:00:52]} 26. c5 {[%clk 0:01:21.5]}
26... bxc5 {[%clk 0:00:48.3]} 27. Nxc5 {[%clk 0:01:22.4]} 27... Ra5 {[%clk
0:00:48.9]} 28. Kd4 {[%clk 0:01:22.6]} 28... Rfa8 {[%clk 0:00:34.2]} 29. Rb8+
{[%clk 0:01:22.1]} 29... Rxb8 {[%clk 0:00:33.3]} 30. Rxb8+ {[%clk 0:01:23]}
30... Kf7 {[%clk 0:00:33.2]} 31. Kc4 {[%clk 0:01:19.8]} 31... Bxa4 {[%clk
0:00:32.2]} 32. Kb4 {[%clk 0:01:19]} 32... Rxc5 {[%clk 0:00:32.1]} 33. Kxc5
{[%clk 0:01:18.8]} 33... h6 {[%clk 0:00:29.8]} 34. Kd6 {[%clk 0:01:18.6]} 34...
g5 {[%clk 0:00:29.7]} 35. Rb7 {[%clk 0:01:15.7]} 1-0

[Event "*** SCC Grand Prix: Titled Tuesday Blitz"]
[Site "Chess.com"]
[Date "2020.10.13"]
[Round "10"]
[White "hungrycaterpillar4"]
[Black "Mr_Sinigami"]
[Result "1-0"]
[WhiteElo "2688"]
[BlackElo "2518"]
[TimeControl "180+1"]
[EndTime "11:53:29 PDT"]
[Termination "hungrycaterpillar4 won on time"]

1. f4 {[%clk 0:02:46]} 1... d5 {[%clk 0:02:56.2]} 2. Nf3 {[%clk 0:02:46.5]} 2...
Nf6 {[%clk 0:02:55.8]} 3. e3 {[%clk 0:02:47.1]} 3... g6 {[%clk 0:02:55.7]} 4.
Be2 {[%clk 0:02:47.5]} 4... Bg7 {[%clk 0:02:55.8]} 5. O-O {[%clk 0:02:48.2]}
5... O-O {[%clk 0:02:56.4]} 6. d3 {[%clk 0:02:48.7]} 6... c5 {[%clk 0:02:56.5]}
7. Ne5 {[%clk 0:02:47]} 7... Nfd7 {[%clk 0:02:53.7]} 8. d4 {[%clk 0:02:45.8]}
8... f6 {[%clk 0:02:46.6]} 9. Nf3 {[%clk 0:02:42]} 9... e6 {[%clk 0:02:35.4]}
10. c3 {[%clk 0:02:39.8]} 10... b6 {[%clk 0:02:33.2]} 11. Bd2 {[%clk 0:02:39.5]}
11... Ba6 {[%clk 0:02:31.7]} 12. Be1 {[%clk 0:02:40]} 12... Bxe2 {[%clk
0:02:25.3]} 13. Qxe2 {[%clk 0:02:40.9]} 13... Nc6 {[%clk 0:02:25.4]} 14. Nbd2
{[%clk 0:02:41.5]} 14... Qe7 {[%clk 0:02:23.7]} 15. Bh4 {[%clk 0:02:41.4]} 15...
Qd6 {[%clk 0:02:12.9]} 16. Rae1 {[%clk 0:02:39.8]} 16... e5 {[%clk 0:02:05.7]}
17. fxe5 {[%clk 0:02:25.2]} 17... fxe5 {[%clk 0:02:04.3]} 18. dxc5 {[%clk
0:02:21.1]} 18... bxc5 {[%clk 0:01:56.7]} 19. e4 {[%clk 0:02:22]} 19... d4
{[%clk 0:01:40]} 20. Qc4+ {[%clk 0:02:21.8]} 20... Kh8 {[%clk 0:01:39.9]} 21.
Ng5 {[%clk 0:02:22.4]} 21... dxc3 {[%clk 0:01:37.5]} 22. Qxc3 {[%clk 0:02:13.9]}
22... Nf6 {[%clk 0:01:16.9]} 23. Nc4 {[%clk 0:02:06.8]} 23... Qe7 {[%clk
0:01:16.6]} 24. Qh3 {[%clk 0:02:02.1]} 24... h6 {[%clk 0:00:52.6]} 25. Ne6
{[%clk 0:02:01.7]} 25... Rf7 {[%clk 0:00:52.2]} 26. Nxg7 {[%clk 0:01:58.4]}
26... Kxg7 {[%clk 0:00:52.1]} 27. Ne3 {[%clk 0:01:58.9]} 27... Qf8 {[%clk
0:00:44.2]} 28. Bxf6+ {[%clk 0:01:54.2]} 28... Rxf6 {[%clk 0:00:43.7]} 29. Rxf6
{[%clk 0:01:54.8]} 29... Qxf6 {[%clk 0:00:40.7]} 30. Qd7+ {[%clk 0:01:54.8]}
30... Kh8 {[%clk 0:00:30.5]} 31. Rf1 {[%clk 0:01:54.8]} 31... Qg5 {[%clk
0:00:26]} 32. Nd5 {[%clk 0:01:53.2]} 32... Nd4 {[%clk 0:00:17.8]} 33. Nf6 {[%clk
0:01:46.7]} 33... Nf3+ {[%clk 0:00:05.5]} 34. Rxf3 {[%clk 0:01:46.8]} 34... Qd2
{[%clk 0:00:06.4]} 35. Qxd2 {[%clk 0:01:43.7]} 1-0

[Event "*** SCC Grand Prix: Titled Tuesday Blitz"]
[Site "Chess.com"]
[Date "2020.10.13"]
[Round "10"]
[White "AIROPITO7"]
[Black "tdf98pantani"]
[Result "0-1"]
[WhiteElo "2553"]
[BlackElo "2726"]
[TimeControl "180+1"]
[EndTime "11:53:32 PDT"]
[Termination "tdf98pantani won by resignation"]

1. e4 {[%clk 0:02:45.2]} 1... e5 {[%clk 0:02:59.7]} 2. Nf3 {[%clk 0:02:44.6]}
2... Nc6 {[%clk 0:02:59.9]} 3. Bb5 {[%clk 0:02:43.5]} 3... a6 {[%clk 0:03:00.1]}
4. Bxc6 {[%clk 0:02:43.5]} 4... dxc6 {[%clk 0:03:00]} 5. Nc3 {[%clk 0:02:44.4]}
5... Bd6 {[%clk 0:02:58.6]} 6. d4 {[%clk 0:02:42.8]} 6... exd4 {[%clk
0:02:54.2]} 7. Nxd4 {[%clk 0:02:43]} 7... Ne7 {[%clk 0:02:52.3]} 8. Be3 {[%clk
0:02:42.5]} 8... O-O {[%clk 0:02:49.9]} 9. Qd2 {[%clk 0:02:39.8]} 9... c5 {[%clk
0:02:32.5]} 10. Nde2 {[%clk 0:02:38.2]} 10... b6 {[%clk 0:02:27.7]} 11. O-O
{[%clk 0:02:32.7]} 11... Bb7 {[%clk 0:02:26.1]} 12. Rad1 {[%clk 0:02:21.4]}
12... f5 {[%clk 0:02:10.3]} 13. Bg5 {[%clk 0:02:08.2]} 13... fxe4 {[%clk
0:02:03.1]} 14. Ng3 {[%clk 0:02:08.2]} 14... Bxg3 {[%clk 0:01:53.3]} 15. hxg3
{[%clk 0:02:09.1]} 15... Qxd2 {[%clk 0:01:53.1]} 16. Rxd2 {[%clk 0:02:10]} 16...
Nf5 {[%clk 0:01:53.1]} 17. Rfd1 {[%clk 0:02:04.3]} 17... Bc6 {[%clk 0:01:38.2]}
18. Bf4 {[%clk 0:01:57.3]} 18... Rac8 {[%clk 0:01:25.1]} 19. Ne2 {[%clk
0:01:33.7]} 19... h6 {[%clk 0:01:22]} 20. Be5 {[%clk 0:01:30.4]} 20... e3 {[%clk
0:01:21.5]} 21. fxe3 {[%clk 0:01:25.8]} 21... Nxe3 {[%clk 0:01:21.5]} 22. Rc1
{[%clk 0:01:26.1]} 22... Rf5 {[%clk 0:01:05.7]} 23. Bc3 {[%clk 0:01:18.3]} 23...
Rcf8 {[%clk 0:00:57.9]} 24. Nf4 {[%clk 0:01:04.4]} 24... g5 {[%clk 0:00:57.6]}
25. Ng6 {[%clk 0:01:00.3]} 25... Rf1+ {[%clk 0:00:55.9]} 26. Rxf1 {[%clk
0:00:59.8]} 26... Rxf1+ {[%clk 0:00:56.4]} 27. Kh2 {[%clk 0:01:00.3]} 27... Ng4+
{[%clk 0:00:52.3]} 28. Kh3 {[%clk 0:01:00.1]} 28... Nf2+ {[%clk 0:00:39.1]} 29.
Rxf2 {[%clk 0:00:58]} 29... Bd7+ {[%clk 0:00:36.7]} 30. g4 {[%clk 0:00:54.4]}
30... Rxf2 {[%clk 0:00:37]} 0-1